{"text_format":"1","workbook":"xlsx","n_sheets":1,"sheets":["Feuil1"],"not_rendered":{"charts":2,"images":2,"macros":1,"external_links":0,"defined_names":5,"comments":0,"pivot_tables":0},"unopened":[],"bounds":{"document_bytes":16777216,"sheet_cells":100000,"rows_first":2000,"rows_last":500,"rows_between":2000,"halvings":0,"cell_chars":16384,"cell_head_chars":4096},"cells_cut":0,"cells_raw":0,"read":"whole","date_system":"1900"}

{"sheet":"Feuil1","index":0,"n_rows":203,"n_cols":62,"rows_kept":203,"cut":false,"hidden":false,"merged":[[1,0,1,18],[2,0,2,18],[0,1,0,18],[3,19,3,20],[4,19,4,20]]}
[null,"BUT PREMIER: calculer les points ELO et l'évolution du joueur pour le mois en cours (attention: points ELO du mois précédent actualisés le 10 du mois en cours sur Click-tt).\nBUT DEUXIEME: visualiser l'évolution saisonnière du joueur en ajoutant aux données du mois en cours celles des mois antérieurs  \nCréation Vincent Schouwey, développé sur Excel 2010."]
["  ",null,null,null,null,null,null,null,null,null,null,null,null,null,null,null,null,null,null,null,null,null,null,null,null,null,null,null,null,null,null,null,null,null,null,null,null,null,null,null,null,null,null,null,null,null,null,null,null,null,null,null,"Abscisses","Ordonnées"]
["                TOUJOURS UTILISER <BOUTON 2> POUR COLLER LES DONNEES DU PRESSE-PAPIER DANS LA FEUILLE EXCEL",null,null,null,null,null,null,null,null,null,null,null,null,null,null,null,null,null,null,null,null,null,null,null,null,null,null,null,null,null,null,null,null,null,null,null,null,null,null,null,null,null,null,null,null,null,null,null,null,null,null,null,{"$f":"EOMONTH(A7,-1)+1","v":{"$error":"#NUM!"}},{"$f":"IF(B5<751,900,IF(B5>1800,1950,900+(ROUND((B5-700)/50,0))*50))","v":900}]
["Classement \nvirtuel à la date initiale","Points Elo\nà la date initiale",null,"Classement \nvirtuel à la  date finale","Points Elo à la  date finale","D pts Elo entre dates initiale et finale",null,null,null,null,{"$f":"B5+F5","v":0},null,null,"Link pour page web->","http://www.click-tt.ch/cgi-bin/WebObjects/nuLigaTTCH.woa/wa/eloFilter?federation=STT&preferredLanguage=French","D points au class. inf. à la dernière date","D points au class. sup. à la dernière date","Nb max. points  à gagner entre dates initiale et finale","Nb max. points à perdre entre dates initiale et finale","Performance [%] par rapport au nb max. de points à gagner resp. à perdre entre dates initiale et finale",null,"Nombre de matches","Nombre  de matchs gagnés","Nombre de matchs  perdus","Pts ELO meilleure victoire","Pts ELO pire défaite","Maximum points ELO atteint entre date initiale et finale","Minimum points ELO atteint entre date intiale et finale",null,null,null,null,null,null,null,null,null,"D1",659,659,null,null,null,null,null,null,null,null,null,null,null,{"$f":"LOOKUP(9^9,A7:A202)","v":{"$error":"#N/A"}},{"$f":"EOMONTH(AZ4,0)","v":{"$error":"#N/A"}},{"$f":"BB3-300","v":600}]
[{"$f":"IF($B$5=0,\"\",IF($B$5<BI7,BH6,IF($B$5<BI8,BH7,IF($B$5<BI9,BH8,IF($B$5<BI10,BH9,IF($B$5<BI11,BH10,IF($B$5<BI12,BH11,IF($B$5<BI13,BH12,IF($B$5<BI14,BH13,IF($B$5<BI15,BH14,IF($B$5<BI16,BH15,IF($B$5<BI17,BH16,IF($B$5<BI18,BH17,IF($B$5<BI19,BH18,IF($B$5<BI20,BH19,IF($B$5<BI21,BH20,IF($B$5<BI21,BH20,IF($B$5<BI22,BH21,IF($B$5<BI23,BH22,IF($B$5<BI24,BH23,IF($B$5<BI25,BH24,BH25)))))))))))))))))))))","v":""},{"$f":"IF(ISBLANK(C7),,C7)","v":0},null,{"$f":"IF($B$5=0,\"\",IF($E$5<BI7,BH6,IF($E$5<BI8,BH7,IF($E$5<BI9,BH8,IF($E$5<BI10,BH9,IF($E$5<BI11,BH10,IF($E$5<BI12,BH11,IF($E$5<BI13,BH12,IF($E$5<BI14,BH13,IF($E$5<BI15,BH14,IF($E$5<BI16,BH15,IF($E$5<BI17,BH16,IF($E$5<BI18,BH17,IF($E$5<BI19,BH18,IF($E$5<BI20,BH19,IF($E$5<BI21,BH20,IF($E$5<BI21,BH20,IF($E$5<BI22,BH21,IF($E$5<BI23,BH22,IF($E$5<BI24,BH23,IF($E$5<BI25,BH24,BH25)))))))))))))))))))))","v":""},{"$f":"ROUND(K4,0)","v":0},{"$f":"SUM(J7:J203)","v":0},null,null,null,null,null,null,null,null,null,{"$f":"IF($B$5=0,\"\",IF(E5<BI8,E5-BI7,IF(E5<BI9,E5-BI8,IF(E5<BI10,E5-BI9,IF(E5<BI11,E5-BI10,IF(E5<BI12,E5-BI11,IF(E5<BI12,E5-BI11,IF(E5<BI13,E5-BI12,IF(E5<BI14,E5-BI13,IF(E5<BI15,E5-BI14,IF(E5<BI16,E5-BI15,IF(E5<BI17,E5-BI16,IF(E5<BI18,E5-BI17,IF(E5<BI19,E5-BI18,IF(E5<BI20,E5-BI19,IF(E5<BI21,E5-BI20,IF(E5<BI22,E5-BI21,IF(E5<BI23,E5-BI22,IF(E5<BI24,E5-BI23,IF(E5<BI25,E5-BI24,IF(E5<AF27,E5-BI25,BH25)))))))))))))))))))))","v":""},{"$f":"IF($B$5=0,\"\",IF($E$5<BI7,BI7-E5,IF($E$5<BI8,BI8-E5,IF($E$5<BI9,BI9-E5,IF($E$5<BI10,BI10-E5,IF($E$5<BI11,BI11-E5,IF($E$5<BI12,BI12-E5,IF($E$5<BI13,BI13-E5,IF($E$5<BI14,BI14-E5,IF($E$5<BI15,BI15-E5,IF($E$5<BI16,BI16-E5,IF($E$5<BI17,BI17-E5,IF($E$5<BI18,BI18-E5,IF($E$5<BI19,BI19-E5,IF($E$5<BI20,BI20-E5,IF($E$5<BI21,BI21-E5,IF($E$5<BI21,BI21-E5,IF($E$5<BI22,BI22-E5,IF($E$5<BI23,BI23-E5,IF($E$5<BI24,BI24-E5,IF($E$5<BI25,BI25-E5,BH25)))))))))))))))))))))","v":""},{"$f":"IF($B$5=0,\"\",BB202-BB6)","v":""},{"$f":"IF($B$5=0,\"\",BC202-BC6)","v":""},{"$f":"IF(F5=0,\"\",IF(F5>=0,F5/R5,IF(F5<=0,-F5/S5,\"-\")))","v":""},null,{"$f":"IF(F5=0,\"\",COUNT(F7:F202))","v":""},{"$f":"IF(F5=0,\"\",COUNTIF(F7:F202,\">0\"))","v":""},{"$f":"IF(F5=0,\"\",COUNTIF(F7:F202,\"<0\"))","v":""},{"$f":"IF($F$5=0,\"\",MAX(F7:F202))","v":""},{"$f":"IF($F$5=0,\"\",MIN(F7:F202))","v":""},{"$f":"IF($F$5=0,\"\",MAX(BD7:BD202))","v":""},{"$f":"IF($F$5=0,\"\",MIN(BD7:BD202))","v":""},null,null,null,null,null,null,null,null,null,"D2",110,110,null,null,null,null,null,null,null,null,null,null,null,null,null,"Courbe victoire","Courbe défaite","Résultats effectifs",null,null,null,"Echelle \nElo","De","A"]
["Date","Match","points Elo","Adversaire","Points Elo adversaire","Résultat Elo \ndu duel",null,null,null,"delta points Elo [recalculé]","Coefficient","Victoire","Victoire","Défaite","Défaite",null,"Echelle \nElo","De","A","Echelle \nElo","De","A","Echelle \nElo","De","A","Echelle \nElo","De","A",null,null,null,null,null,null,null,null,null,"D3",90,90,null,null,null,null,null,null,null,null,null,null,null,null,{"$f":"BA3","v":{"$error":"#NUM!"}},{"$f":"B5","v":0},{"$f":"B5","v":0},{"$f":"B5","v":0},null,null,null,"D1",500,659]
[null,null,null,null,null,null,null,null,null,{"$f":"IF(ISBLANK(A7),\"\",IF(H7=\"v\",M7,O7))","v":""},{"$f":"(1/(1+10^((E7-C7)/200)))","v":0.5},{"$f":"C7+15*(1-K7)","v":7.5},{"$f":"L7-C7","v":7.5},{"$f":"C7+(15*(0-K7))","v":-7.5},{"$f":"-(C7-N7)","v":-7.5},null,"D1",500,659,"C6",990,1039,"B11",1200,1239,"A16",1410,1469,null,null,null,null,null,null,null,null,null,"D4",70,70,null,null,null,null,null,null,null,null,null,null,null,null,{"$f":"IF(ISBLANK(A7),BA6,A7)","v":{"$error":"#NUM!"}},{"$f":"IF(ISBLANK(A7),BB6,BB6+M7)","v":0},{"$f":"IF(BC6<=600,600,IF(ISBLANK(A7),BC6,BC6+O7))","v":600},{"$f":"IF(BD6>=2000,2000,IF(ISBLANK(A7),BD6,BD6+J7))","v":0},null,null,null,"D2",660,769]
[null,null,null,null,null,null,null,null,null,{"$f":"IF(ISBLANK(A8),\"\",IF(H8=\"v\",M8,O8))","v":""},{"$f":"(1/(1+10^((E8-C8)/200)))","v":0.5},{"$f":"C8+15*(1-K8)","v":7.5},{"$f":"L8-C8","v":7.5},{"$f":"C8+(15*(0-K8))","v":-7.5},{"$f":"-(C8-N8)","v":-7.5},null,"D2",660,769,"C7",1040,1079,"B12",1240,1279,"A17",1470,1539,null,null,null,null,null,null,null,null,null,"D5",60,60,null,null,null,null,null,null,null,null,null,null,null,null,{"$error":"#NUM!"},0,600,0,null,null,null,"D3",770,859]
[null,null,null,null,null,null,null,null,null,"",0.5,7.5,7.5,-7.5,-7.5,null,"D3",770,859,"C8",1080,1119,"B13",1280,1319,"A18",1540,1629,null,null,null,null,null,null,null,null,null,"C6",50,50,null,null,null,null,null,null,null,null,null,null,null,null,{"$error":"#NUM!"},0,600,0,null,null,null,"D4",860,929]
[null,null,null,null,null,null,null,null,null,"",0.5,7.5,7.5,-7.5,-7.5,null,"D4",860,929,"C9",1120,1159,"B14",1320,1359,"A19",1630,1739,null,null,null,null,null,null,null,null,null,"C7",40,40,null,null,null,null,null,null,null,null,null,null,null,null,{"$error":"#NUM!"},0,600,0,null,null,null,"D5",930,989]
[null,null,null,null,null,null,null,null,null,"",0.5,7.5,7.5,-7.5,-7.5,null,"D5",930,989,"C10",1160,1199,"B15",1360,1409,"A20",1740,2000,null,null,null,null,null,null,null,null,null,"C8",40,40,null,null,null,null,null,null,null,null,null,null,null,null,{"$error":"#NUM!"},0,600,0,null,null,null,"C6",990,1039]
[null,null,null,null,null,null,null,null,null,"",0.5,7.5,7.5,-7.5,-7.5,null,null,null,null,null,null,null,null,null,null,null,null,null,null,null,null,null,null,null,null,null,null,"C9",40,40,null,null,null,null,null,null,null,null,null,null,null,null,{"$error":"#NUM!"},0,600,0,null,null,null,"C7",1040,1079]
[null,null,null,null,null,null,null,null,null,"",0.5,7.5,7.5,-7.5,-7.5,null,null,null,null,null,null,null,null,null,null,null,null,null,null,null,null,null,null,null,null,null,null,"C10",40,40,null,null,null,null,null,null,null,null,null,null,null,null,{"$error":"#NUM!"},0,600,0,null,null,null,"C8",1080,1119]
[null,null,null,null,null,null,null,null,null,"",0.5,7.5,7.5,-7.5,-7.5,null,null,null,null,null,null,null,null,null,null,null,null,null,null,null,null,null,null,null,null,null,null,"B11",40,40,null,null,null,null,null,null,null,null,null,null,null,null,{"$error":"#NUM!"},0,600,0,null,null,null,"C9",1120,1159]
[null,null,null,null,null,null,null,null,null,"",0.5,7.5,7.5,-7.5,-7.5,null,null,null,null,null,null,null,null,null,null,null,null,null,null,null,null,null,null,null,null,null,null,"B12",40,40,null,null,null,null,null,null,null,null,null,null,null,null,{"$error":"#NUM!"},0,600,0,null,null,null,"C10",1160,1199]
[null,null,null,null,null,null,null,null,null,"",{"$f":"(1/(1+10^((E16-C16)/200)))","v":0.5},{"$f":"C16+15*(1-K16)","v":7.5},{"$f":"L16-C16","v":7.5},{"$f":"C16+(15*(0-K16))","v":-7.5},{"$f":"-(C16-N16)","v":-7.5},null,null,null,null,null,null,null,null,null,null,null,null,null,null,null,null,null,null,null,null,null,null,"B13",40,40,null,null,null,null,null,null,null,null,null,null,null,null,{"$error":"#NUM!"},0,600,0,null,null,null,"B11",1200,1239]
[null,null,null,null,null,null,null,null,null,"",0.5,7.5,7.5,-7.5,-7.5,null,null,null,null,null,null,null,null,null,null,null,null,null,null,null,null,null,null,null,null,null,null,"B14",40,40,null,null,null,null,null,null,null,null,null,null,null,null,{"$error":"#NUM!"},0,600,0,null,null,null,"B12",1240,1279]
[null,null,null,null,null,null,null,null,null,{"$f":"IF(ISBLANK(A18),\"\",IF(H18=\"v\",M18,O18))","v":""},{"$f":"(1/(1+10^((E18-C18)/200)))","v":0.5},{"$f":"C18+15*(1-K18)","v":7.5},{"$f":"L18-C18","v":7.5},{"$f":"C18+(15*(0-K18))","v":-7.5},{"$f":"-(C18-N18)","v":-7.5},null,null,null,null,null,null,null,null,null,null,null,null,null,null,null,null,null,null,null,null,null,null,"B15",50,50,null,null,null,null,null,null,null,null,null,null,null,null,{"$error":"#NUM!"},0,600,0,null,null,null,"B13",1280,1319]
[null,null,null,null,null,null,null,null,null,"",0.5,7.5,7.5,-7.5,-7.5,null,null,null,null,null,null,null,null,null,null,null,null,null,null,null,null,null,null,null,null,null,null,"A16",60,60,null,null,null,null,null,null,null,null,null,null,null,null,{"$error":"#NUM!"},0,600,0,null,null,null,"B14",1320,1359]
[null,null,null,null,null,null,null,null,null,"",0.5,7.5,7.5,-7.5,-7.5,null,null,null,null,null,null,null,null,null,null,null,null,null,null,null,null,null,null,null,null,null,null,"A17",70,70,null,null,null,null,null,null,null,null,null,null,null,null,{"$error":"#NUM!"},0,600,0,null,null,null,"B15",1360,1409]
[null,null,null,null,null,null,null,null,null,"",0.5,7.5,7.5,-7.5,-7.5,null,null,null,null,null,null,null,null,null,null,null,null,null,null,null,null,null,null,null,null,null,null,"A18",90,90,null,null,null,null,null,null,null,null,null,null,null,null,{"$error":"#NUM!"},0,600,0,null,null,null,"A16",1410,1469]
[null,null,null,null,null,null,null,null,null,"",0.5,7.5,7.5,-7.5,-7.5,null,null,null,null,null,null,null,null,null,null,null,null,null,null,null,null,null,null,null,null,null,null,"A19",110,110,null,null,null,null,null,null,null,null,null,null,null,null,{"$error":"#NUM!"},0,600,0,null,null,null,"A17",1470,1539]
[null,null,null,null,null,null,null,null,null,"",0.5,7.5,7.5,-7.5,-7.5,null,null,null,null,null,null,null,null,null,null,null,null,null,null,null,null,null,null,null,null,null,null,"A20",261,261,null,null,null,null,null,null,null,null,null,null,null,null,{"$error":"#NUM!"},0,600,0,null,null,null,"A18",1540,1629]
[null,null,null,null,null,null,null,null,null,"",0.5,7.5,7.5,-7.5,-7.5,null,null,null,null,null,null,null,null,null,null,null,null,null,null,null,null,null,null,null,null,null,null,null,null,null,null,null,null,null,null,null,null,null,null,null,null,null,{"$error":"#NUM!"},0,600,0,null,null,null,"A19",1630,1739]
[null,null,null,null,null,null,null,null,null,"",0.5,7.5,7.5,-7.5,-7.5,null,null,null,null,null,null,null,null,null,null,null,null,null,null,null,null,null,null,null,null,null,null,null,null,null,null,null,null,null,null,null,null,null,null,null,null,null,{"$error":"#NUM!"},0,600,0,null,null,null,"A20",1740,2000]
[null,null,null,null,null,null,null,null,null,"",0.5,7.5,7.5,-7.5,-7.5,null,null,null,null,null,null,null,null,null,null,null,null,null,null,null,null,null,null,null,null,null,null,null,null,null,null,null,null,null,null,null,null,null,null,null,null,null,{"$error":"#NUM!"},0,600,0]
[null,null,null,null,null,null,null,null,null,"",0.5,7.5,7.5,-7.5,-7.5,null,null,null,null,null,null,null,null,null,null,null,null,null,null,null,null,null,null,null,null,null,null,null,null,null,null,null,null,null,null,null,null,null,null,null,null,null,{"$error":"#NUM!"},0,600,0]
[null,null,null,null,null,null,null,null,null,"",0.5,7.5,7.5,-7.5,-7.5,null,null,null,null,null,null,null,null,null,null,null,null,null,null,null,null,null,null,null,null,null,null,null,null,null,null,null,null,null,null,null,null,null,null,null,null,null,{"$error":"#NUM!"},0,600,0]
[null,null,null,null,null,null,null,null,null,"",0.5,7.5,7.5,-7.5,-7.5,null,null,null,null,null,null,null,null,null,null,null,null,null,null,null,null,null,null,null,null,null,null,null,null,null,null,null,null,null,null,null,null,null,null,null,null,null,{"$error":"#NUM!"},0,600,0]
[null,null,null,null,null,null,null,null,null,"",0.5,7.5,7.5,-7.5,-7.5,null,null,null,null,null,null,null,null,null,null,null,null,null,null,null,null,null,null,null,null,null,null,null,null,null,null,null,null,null,null,null,null,null,null,null,null,null,{"$error":"#NUM!"},0,600,0]
[null,null,null,null,null,null,null,null,null,"",0.5,7.5,7.5,-7.5,-7.5,null,null,null,null,null,null,null,null,null,null,null,null,null,null,null,null,null,null,null,null,null,null,null,null,null,null,null,null,null,null,null,null,null,null,null,null,null,{"$error":"#NUM!"},0,600,0]
[null,null,null,null,null,null,null,null,null,"",0.5,7.5,7.5,-7.5,-7.5,null,null,null,null,null,null,null,null,null,null,null,null,null,null,null,null,null,null,null,null,null,null,null,null,null,null,null,null,null,null,null,null,null,null,null,null,null,{"$error":"#NUM!"},0,600,0]
[null,null,null,null,null,null,null,null,null,"",0.5,7.5,7.5,-7.5,-7.5,null,null,null,null,null,null,null,null,null,null,null,null,null,null,null,null,null,null,null,null,null,null,null,null,null,null,null,null,null,null,null,null,null,null,null,null,null,{"$error":"#NUM!"},0,600,0]
[null,null,null,null,null,null,null,null,null,"",0.5,7.5,7.5,-7.5,-7.5,null,null,null,null,null,null,null,null,null,null,null,null,null,null,null,null,null,null,null,null,null,null,null,null,null,null,null,null,null,null,null,null,null,null,null,null,null,{"$error":"#NUM!"},0,600,0]
[null,null,null,null,null,null,null,null,null,"",0.5,7.5,7.5,-7.5,-7.5,null,null,null,null,null,null,null,null,null,null,null,null,null,null,null,null,null,null,null,null,null,null,null,null,null,null,null,null,null,null,null,null,null,null,null,null,null,{"$error":"#NUM!"},0,600,0]
[null,null,null,null,null,null,null,null,null,"",0.5,7.5,7.5,-7.5,-7.5,null,null,null,null,null,null,null,null,null,null,null,null,null,null,null,null,null,null,null,null,null,null,null,null,null,null,null,null,null,null,null,null,null,null,null,null,null,{"$error":"#NUM!"},0,600,0]
[null,null,null,null,null,null,null,null,null,"",0.5,7.5,7.5,-7.5,-7.5,null,null,null,null,null,null,null,null,null,null,null,null,null,null,null,null,null,null,null,null,null,null,null,null,null,null,null,null,null,null,null,null,null,null,null,null,null,{"$error":"#NUM!"},0,600,0]
[null,null,null,null,null,null,null,null,null,"",0.5,7.5,7.5,-7.5,-7.5,null,null,null,null,null,null,null,null,null,null,null,null,null,null,null,null,null,null,null,null,null,null,null,null,null,null,null,null,null,null,null,null,null,null,null,null,null,{"$error":"#NUM!"},0,600,0]
[null,null,null,null,null,null,null,null,null,"",0.5,7.5,7.5,-7.5,-7.5,null,null,null,null,null,null,null,null,null,null,null,null,null,null,null,null,null,null,null,null,null,null,null,null,null,null,null,null,null,null,null,null,null,null,null,null,null,{"$f":"IF(ISBLANK(A39),BA38,A39)","v":{"$error":"#NUM!"}},{"$f":"IF(ISBLANK(A39),BB38,BB38+M39)","v":0},{"$f":"IF(BC38<=600,600,IF(ISBLANK(A39),BC38,BC38+O39))","v":600},{"$f":"IF(BD38>=2000,2000,IF(ISBLANK(A39),BD38,BD38+J39))","v":0}]
[null,null,null,null,null,null,null,null,null,"",0.5,7.5,7.5,-7.5,-7.5,null,null,null,null,null,null,null,null,null,null,null,null,null,null,null,null,null,null,null,null,null,null,null,null,null,null,null,null,null,null,null,null,null,null,null,null,null,{"$error":"#NUM!"},0,600,0]
[null,null,null,null,null,null,null,null,null,"",0.5,7.5,7.5,-7.5,-7.5,null,null,null,null,null,null,null,null,null,null,null,null,null,null,null,null,null,null,null,null,null,null,null,null,null,null,null,null,null,null,null,null,null,null,null,null,null,{"$error":"#NUM!"},0,600,0]
[null,null,null,null,null,null,null,null,null,"",0.5,7.5,7.5,-7.5,-7.5,null,null,null,null,null,null,null,null,null,null,null,null,null,null,null,null,null,null,null,null,null,null,null,null,null,null,null,null,null,null,null,null,null,null,null,null,null,{"$error":"#NUM!"},0,600,0]
[null,null,null,null,null,null,null,null,null,"",0.5,7.5,7.5,-7.5,-7.5,null,null,null,null,null,null,null,null,null,null,null,null,null,null,null,null,null,null,null,null,null,null,null,null,null,null,null,null,null,null,null,null,null,null,null,null,null,{"$error":"#NUM!"},0,600,0]
[null,null,null,null,null,null,null,null,null,"",0.5,7.5,7.5,-7.5,-7.5,null,null,null,null,null,null,null,null,null,null,null,null,null,null,null,null,null,null,null,null,null,null,null,null,null,null,null,null,null,null,null,null,null,null,null,null,null,{"$error":"#NUM!"},0,600,0]
[null,null,null,null,null,null,null,null,null,"",0.5,7.5,7.5,-7.5,-7.5,null,null,null,null,null,null,null,null,null,null,null,null,null,null,null,null,null,null,null,null,null,null,null,null,null,null,null,null,null,null,null,null,null,null,null,null,null,{"$error":"#NUM!"},0,600,0]
[null,null,null,null,null,null,null,null,null,"",0.5,7.5,7.5,-7.5,-7.5,null,null,null,null,null,null,null,null,null,null,null,null,null,null,null,null,null,null,null,null,null,null,null,null,null,null,null,null,null,null,null,null,null,null,null,null,null,{"$error":"#NUM!"},0,600,0]
[null,null,null,null,null,null,null,null,null,"",0.5,7.5,7.5,-7.5,-7.5,null,null,null,null,null,null,null,null,null,null,null,null,null,null,null,null,null,null,null,null,null,null,null,null,null,null,null,null,null,null,null,null,null,null,null,null,null,{"$error":"#NUM!"},0,600,0]
[null,null,null,null,null,null,null,null,null,"",0.5,7.5,7.5,-7.5,-7.5,null,null,null,null,null,null,null,null,null,null,null,null,null,null,null,null,null,null,null,null,null,null,null,null,null,null,null,null,null,null,null,null,null,null,null,null,null,{"$error":"#NUM!"},0,600,0]
[null,null,null,null,null,null,null,null,null,"",0.5,7.5,7.5,-7.5,-7.5,null,null,null,null,null,null,null,null,null,null,null,null,null,null,null,null,null,null,null,null,null,null,null,null,null,null,null,null,null,null,null,null,null,null,null,null,null,{"$error":"#NUM!"},0,600,0]
[null,null,null,null,null,null,null,null,null,"",0.5,7.5,7.5,-7.5,-7.5,null,null,null,null,null,null,null,null,null,null,null,null,null,null,null,null,null,null,null,null,null,null,null,null,null,null,null,null,null,null,null,null,null,null,null,null,null,{"$error":"#NUM!"},0,600,0]
[null,null,null,null,null,null,null,null,null,"",0.5,7.5,7.5,-7.5,-7.5,null,null,null,null,null,null,null,null,null,null,null,null,null,null,null,null,null,null,null,null,null,null,null,null,null,null,null,null,null,null,null,null,null,null,null,null,null,{"$error":"#NUM!"},0,600,0]
[null,null,null,null,null,null,null,null,null,"",0.5,7.5,7.5,-7.5,-7.5,null,null,null,null,null,null,null,null,null,null,null,null,null,null,null,null,null,null,null,null,null,null,null,null,null,null,null,null,null,null,null,null,null,null,null,null,null,{"$error":"#NUM!"},0,600,0]
[null,null,null,null,null,null,null,null,null,"",0.5,7.5,7.5,-7.5,-7.5,null,null,null,null,null,null,null,null,null,null,null,null,null,null,null,null,null,null,null,null,null,null,null,null,null,null,null,null,null,null,null,null,null,null,null,null,null,{"$error":"#NUM!"},0,600,0]
[null,null,null,null,null,null,null,null,null,"",0.5,7.5,7.5,-7.5,-7.5,null,null,null,null,null,null,null,null,null,null,null,null,null,null,null,null,null,null,null,null,null,null,null,null,null,null,null,null,null,null,null,null,null,null,null,null,null,{"$error":"#NUM!"},0,600,0]
[null,null,null,null,null,null,null,null,null,"",0.5,7.5,7.5,-7.5,-7.5,null,null,null,null,null,null,null,null,null,null,null,null,null,null,null,null,null,null,null,null,null,null,null,null,null,null,null,null,null,null,null,null,null,null,null,null,null,{"$error":"#NUM!"},0,600,0]
[null,null,null,null,null,null,null,null,null,"",0.5,7.5,7.5,-7.5,-7.5,null,null,null,null,null,null,null,null,null,null,null,null,null,null,null,null,null,null,null,null,null,null,null,null,null,null,null,null,null,null,null,null,null,null,null,null,null,{"$error":"#NUM!"},0,600,0]
[null,null,null,null,null,null,null,null,null,"",0.5,7.5,7.5,-7.5,-7.5,null,null,null,null,null,null,null,null,null,null,null,null,null,null,null,null,null,null,null,null,null,null,null,null,null,null,null,null,null,null,null,null,null,null,null,null,null,{"$error":"#NUM!"},0,600,0]
[null,null,null,null,null,null,null,null,null,"",0.5,7.5,7.5,-7.5,-7.5,null,null,null,null,null,null,null,null,null,null,null,null,null,null,null,null,null,null,null,null,null,null,null,null,null,null,null,null,null,null,null,null,null,null,null,null,null,{"$error":"#NUM!"},0,600,0]
[null,null,null,null,null,null,null,null,null,"",0.5,7.5,7.5,-7.5,-7.5,null,null,null,null,null,null,null,null,null,null,null,null,null,null,null,null,null,null,null,null,null,null,null,null,null,null,null,null,null,null,null,null,null,null,null,null,null,{"$error":"#NUM!"},0,600,0]
[null,null,null,null,null,null,null,null,null,"",0.5,7.5,7.5,-7.5,-7.5,null,null,null,null,null,null,null,null,null,null,null,null,null,null,null,null,null,null,null,null,null,null,null,null,null,null,null,null,null,null,null,null,null,null,null,null,null,{"$error":"#NUM!"},0,600,0]
[null,null,null,null,null,null,null,null,null,"",0.5,7.5,7.5,-7.5,-7.5,null,null,null,null,null,null,null,null,null,null,null,null,null,null,null,null,null,null,null,null,null,null,null,null,null,null,null,null,null,null,null,null,null,null,null,null,null,{"$error":"#NUM!"},0,600,0]
[null,null,null,null,null,null,null,null,null,"",0.5,7.5,7.5,-7.5,-7.5,null,null,null,null,null,null,null,null,null,null,null,null,null,null,null,null,null,null,null,null,null,null,null,null,null,null,null,null,null,null,null,null,null,null,null,null,null,{"$error":"#NUM!"},0,600,0]
[null,null,null,null,null,null,null,null,null,"",0.5,7.5,7.5,-7.5,-7.5,null,null,null,null,null,null,null,null,null,null,null,null,null,null,null,null,null,null,null,null,null,null,null,null,null,null,null,null,null,null,null,null,null,null,null,null,null,{"$error":"#NUM!"},0,600,0]
[null,null,null,null,null,null,null,null,null,"",0.5,7.5,7.5,-7.5,-7.5,null,null,null,null,null,null,null,null,null,null,null,null,null,null,null,null,null,null,null,null,null,null,null,null,null,null,null,null,null,null,null,null,null,null,null,null,null,{"$error":"#NUM!"},0,600,0]
[null,null,null,null,null,null,null,null,null,"",0.5,7.5,7.5,-7.5,-7.5,null,null,null,null,null,null,null,null,null,null,null,null,null,null,null,null,null,null,null,null,null,null,null,null,null,null,null,null,null,null,null,null,null,null,null,null,null,{"$error":"#NUM!"},0,600,0]
[null,null,null,null,null,null,null,null,null,"",0.5,7.5,7.5,-7.5,-7.5,null,null,null,null,null,null,null,null,null,null,null,null,null,null,null,null,null,null,null,null,null,null,null,null,null,null,null,null,null,null,null,null,null,null,null,null,null,{"$error":"#NUM!"},0,600,0]
[null,null,null,null,null,null,null,null,null,"",0.5,7.5,7.5,-7.5,-7.5,null,null,null,null,null,null,null,null,null,null,null,null,null,null,null,null,null,null,null,null,null,null,null,null,null,null,null,null,null,null,null,null,null,null,null,null,null,{"$error":"#NUM!"},0,600,0]
[null,null,null,null,null,null,null,null,null,"",0.5,7.5,7.5,-7.5,-7.5,null,null,null,null,null,null,null,null,null,null,null,null,null,null,null,null,null,null,null,null,null,null,null,null,null,null,null,null,null,null,null,null,null,null,null,null,null,{"$error":"#NUM!"},0,600,0]
[null,null,null,null,null,null,null,null,null,"",0.5,7.5,7.5,-7.5,-7.5,null,null,null,null,null,null,null,null,null,null,null,null,null,null,null,null,null,null,null,null,null,null,null,null,null,null,null,null,null,null,null,null,null,null,null,null,null,{"$error":"#NUM!"},0,600,0]
[null,null,null,null,null,null,null,null,null,"",0.5,7.5,7.5,-7.5,-7.5,null,null,null,null,null,null,null,null,null,null,null,null,null,null,null,null,null,null,null,null,null,null,null,null,null,null,null,null,null,null,null,null,null,null,null,null,null,{"$error":"#NUM!"},0,600,0]
[null,null,null,null,null,null,null,null,null,"",0.5,7.5,7.5,-7.5,-7.5,null,null,null,null,null,null,null,null,null,null,null,null,null,null,null,null,null,null,null,null,null,null,null,null,null,null,null,null,null,null,null,null,null,null,null,null,null,{"$f":"IF(ISBLANK(A71),BA70,A71)","v":{"$error":"#NUM!"}},{"$f":"IF(ISBLANK(A71),BB70,BB70+M71)","v":0},{"$f":"IF(BC70<=600,600,IF(ISBLANK(A71),BC70,BC70+O71))","v":600},{"$f":"IF(BD70>=2000,2000,IF(ISBLANK(A71),BD70,BD70+J71))","v":0}]
[null,null,null,null,null,null,null,null,null,"",0.5,7.5,7.5,-7.5,-7.5,null,null,null,null,null,null,null,null,null,null,null,null,null,null,null,null,null,null,null,null,null,null,null,null,null,null,null,null,null,null,null,null,null,null,null,null,null,{"$error":"#NUM!"},0,600,0]
[null,null,null,null,null,null,null,null,null,"",0.5,7.5,7.5,-7.5,-7.5,null,null,null,null,null,null,null,null,null,null,null,null,null,null,null,null,null,null,null,null,null,null,null,null,null,null,null,null,null,null,null,null,null,null,null,null,null,{"$error":"#NUM!"},0,600,0]
[null,null,null,null,null,null,null,null,null,"",0.5,7.5,7.5,-7.5,-7.5,null,null,null,null,null,null,null,null,null,null,null,null,null,null,null,null,null,null,null,null,null,null,null,null,null,null,null,null,null,null,null,null,null,null,null,null,null,{"$error":"#NUM!"},0,600,0]
[null,null,null,null,null,null,null,null,null,"",0.5,7.5,7.5,-7.5,-7.5,null,null,null,null,null,null,null,null,null,null,null,null,null,null,null,null,null,null,null,null,null,null,null,null,null,null,null,null,null,null,null,null,null,null,null,null,null,{"$error":"#NUM!"},0,600,0]
[null,null,null,null,null,null,null,null,null,"",0.5,7.5,7.5,-7.5,-7.5,null,null,null,null,null,null,null,null,null,null,null,null,null,null,null,null,null,null,null,null,null,null,null,null,null,null,null,null,null,null,null,null,null,null,null,null,null,{"$error":"#NUM!"},0,600,0]
[null,null,null,null,null,null,null,null,null,"",0.5,7.5,7.5,-7.5,-7.5,null,null,null,null,null,null,null,null,null,null,null,null,null,null,null,null,null,null,null,null,null,null,null,null,null,null,null,null,null,null,null,null,null,null,null,null,null,{"$error":"#NUM!"},0,600,0]
[null,null,null,null,null,null,null,null,null,"",0.5,7.5,7.5,-7.5,-7.5,null,null,null,null,null,null,null,null,null,null,null,null,null,null,null,null,null,null,null,null,null,null,null,null,null,null,null,null,null,null,null,null,null,null,null,null,null,{"$error":"#NUM!"},0,600,0]
[null,null,null,null,null,null,null,null,null,"",0.5,7.5,7.5,-7.5,-7.5,null,null,null,null,null,null,null,null,null,null,null,null,null,null,null,null,null,null,null,null,null,null,null,null,null,null,null,null,null,null,null,null,null,null,null,null,null,{"$error":"#NUM!"},0,600,0]
[null,null,null,null,null,null,null,null,null,"",0.5,7.5,7.5,-7.5,-7.5,null,null,null,null,null,null,null,null,null,null,null,null,null,null,null,null,null,null,null,null,null,null,null,null,null,null,null,null,null,null,null,null,null,null,null,null,null,{"$error":"#NUM!"},0,600,0]
[null,null,null,null,null,null,null,null,null,"",0.5,7.5,7.5,-7.5,-7.5,null,null,null,null,null,null,null,null,null,null,null,null,null,null,null,null,null,null,null,null,null,null,null,null,null,null,null,null,null,null,null,null,null,null,null,null,null,{"$error":"#NUM!"},0,600,0]
[null,null,null,null,null,null,null,null,null,{"$f":"IF(ISBLANK(A82),\"\",IF(H82=\"v\",M82,O82))","v":""},{"$f":"(1/(1+10^((E82-C82)/200)))","v":0.5},{"$f":"C82+15*(1-K82)","v":7.5},{"$f":"L82-C82","v":7.5},{"$f":"C82+(15*(0-K82))","v":-7.5},{"$f":"-(C82-N82)","v":-7.5},null,null,null,null,null,null,null,null,null,null,null,null,null,null,null,null,null,null,null,null,null,null,null,null,null,null,null,null,null,null,null,null,null,null,null,null,null,{"$error":"#NUM!"},0,600,0]
[null,null,null,null,null,null,null,null,null,"",0.5,7.5,7.5,-7.5,-7.5,null,null,null,null,null,null,null,null,null,null,null,null,null,null,null,null,null,null,null,null,null,null,null,null,null,null,null,null,null,null,null,null,null,null,null,null,null,{"$error":"#NUM!"},0,600,0]
[null,null,null,null,null,null,null,null,null,"",0.5,7.5,7.5,-7.5,-7.5,null,null,null,null,null,null,null,null,null,null,null,null,null,null,null,null,null,null,null,null,null,null,null,null,null,null,null,null,null,null,null,null,null,null,null,null,null,{"$error":"#NUM!"},0,600,0]
[null,null,null,null,null,null,null,null,null,"",0.5,7.5,7.5,-7.5,-7.5,null,null,null,null,null,null,null,null,null,null,null,null,null,null,null,null,null,null,null,null,null,null,null,null,null,null,null,null,null,null,null,null,null,null,null,null,null,{"$error":"#NUM!"},0,600,0]
[null,null,null,null,null,null,null,null,null,"",0.5,7.5,7.5,-7.5,-7.5,null,null,null,null,null,null,null,null,null,null,null,null,null,null,null,null,null,null,null,null,null,null,null,null,null,null,null,null,null,null,null,null,null,null,null,null,null,{"$error":"#NUM!"},0,600,0]
[null,null,null,null,null,null,null,null,null,"",0.5,7.5,7.5,-7.5,-7.5,null,null,null,null,null,null,null,null,null,null,null,null,null,null,null,null,null,null,null,null,null,null,null,null,null,null,null,null,null,null,null,null,null,null,null,null,null,{"$error":"#NUM!"},0,600,0]
[null,null,null,null,null,null,null,null,null,"",0.5,7.5,7.5,-7.5,-7.5,null,null,null,null,null,null,null,null,null,null,null,null,null,null,null,null,null,null,null,null,null,null,null,null,null,null,null,null,null,null,null,null,null,null,null,null,null,{"$error":"#NUM!"},0,600,0]
[null,null,null,null,null,null,null,null,null,"",0.5,7.5,7.5,-7.5,-7.5,null,null,null,null,null,null,null,null,null,null,null,null,null,null,null,null,null,null,null,null,null,null,null,null,null,null,null,null,null,null,null,null,null,null,null,null,null,{"$error":"#NUM!"},0,600,0]
[null,null,null,null,null,null,null,null,null,"",0.5,7.5,7.5,-7.5,-7.5,null,null,null,null,null,null,null,null,null,null,null,null,null,null,null,null,null,null,null,null,null,null,null,null,null,null,null,null,null,null,null,null,null,null,null,null,null,{"$error":"#NUM!"},0,600,0]
[null,null,null,null,null,null,null,null,null,"",0.5,7.5,7.5,-7.5,-7.5,null,null,null,null,null,null,null,null,null,null,null,null,null,null,null,null,null,null,null,null,null,null,null,null,null,null,null,null,null,null,null,null,null,null,null,null,null,{"$error":"#NUM!"},0,600,0]
[null,null,null,null,null,null,null,null,null,"",0.5,7.5,7.5,-7.5,-7.5,null,null,null,null,null,null,null,null,null,null,null,null,null,null,null,null,null,null,null,null,null,null,null,null,null,null,null,null,null,null,null,null,null,null,null,null,null,{"$error":"#NUM!"},0,600,0]
[null,null,null,null,null,null,null,null,null,"",0.5,7.5,7.5,-7.5,-7.5,null,null,null,null,null,null,null,null,null,null,null,null,null,null,null,null,null,null,null,null,null,null,null,null,null,null,null,null,null,null,null,null,null,null,null,null,null,{"$error":"#NUM!"},0,600,0]
[null,null,null,null,null,null,null,null,null,"",0.5,7.5,7.5,-7.5,-7.5,null,null,null,null,null,null,null,null,null,null,null,null,null,null,null,null,null,null,null,null,null,null,null,null,null,null,null,null,null,null,null,null,null,null,null,null,null,{"$error":"#NUM!"},0,600,0]
[null,null,null,null,null,null,null,null,null,"",0.5,7.5,7.5,-7.5,-7.5,null,null,null,null,null,null,null,null,null,null,null,null,null,null,null,null,null,null,null,null,null,null,null,null,null,null,null,null,null,null,null,null,null,null,null,null,null,{"$error":"#NUM!"},0,600,0]
[null,null,null,null,null,null,null,null,null,"",0.5,7.5,7.5,-7.5,-7.5,null,null,null,null,null,null,null,null,null,null,null,null,null,null,null,null,null,null,null,null,null,null,null,null,null,null,null,null,null,null,null,null,null,null,null,null,null,{"$error":"#NUM!"},0,600,0]
[null,null,null,null,null,null,null,null,null,"",0.5,7.5,7.5,-7.5,-7.5,null,null,null,null,null,null,null,null,null,null,null,null,null,null,null,null,null,null,null,null,null,null,null,null,null,null,null,null,null,null,null,null,null,null,null,null,null,{"$error":"#NUM!"},0,600,0]
[null,null,null,null,null,null,null,null,null,"",0.5,7.5,7.5,-7.5,-7.5,null,null,null,null,null,null,null,null,null,null,null,null,null,null,null,null,null,null,null,null,null,null,null,null,null,null,null,null,null,null,null,null,null,null,null,null,null,{"$error":"#NUM!"},0,600,0]
[null,null,null,null,null,null,null,null,null,"",0.5,7.5,7.5,-7.5,-7.5,null,null,null,null,null,null,null,null,null,null,null,null,null,null,null,null,null,null,null,null,null,null,null,null,null,null,null,null,null,null,null,null,null,null,null,null,null,{"$error":"#NUM!"},0,600,0]
[null,null,null,null,null,null,null,null,null,"",0.5,7.5,7.5,-7.5,-7.5,null,null,null,null,null,null,null,null,null,null,null,null,null,null,null,null,null,null,null,null,null,null,null,null,null,null,null,null,null,null,null,null,null,null,null,null,null,{"$error":"#NUM!"},0,600,0]
[null,null,null,null,null,null,null,null,null,"",0.5,7.5,7.5,-7.5,-7.5,null,null,null,null,null,null,null,null,null,null,null,null,null,null,null,null,null,null,null,null,null,null,null,null,null,null,null,null,null,null,null,null,null,null,null,null,null,{"$error":"#NUM!"},0,600,0]
[null,null,null,null,null,null,null,null,null,"",0.5,7.5,7.5,-7.5,-7.5,null,null,null,null,null,null,null,null,null,null,null,null,null,null,null,null,null,null,null,null,null,null,null,null,null,null,null,null,null,null,null,null,null,null,null,null,null,{"$error":"#NUM!"},0,600,0]
[null,null,null,null,null,null,null,null,null,"",0.5,7.5,7.5,-7.5,-7.5,null,null,null,null,null,null,null,null,null,null,null,null,null,null,null,null,null,null,null,null,null,null,null,null,null,null,null,null,null,null,null,null,null,null,null,null,null,{"$f":"IF(ISBLANK(A103),BA102,A103)","v":{"$error":"#NUM!"}},{"$f":"IF(ISBLANK(A103),BB102,BB102+M103)","v":0},{"$f":"IF(BC102<=600,600,IF(ISBLANK(A103),BC102,BC102+O103))","v":600},{"$f":"IF(BD102>=2000,2000,IF(ISBLANK(A103),BD102,BD102+J103))","v":0}]
[null,null,null,null,null,null,null,null,null,"",0.5,7.5,7.5,-7.5,-7.5,null,null,null,null,null,null,null,null,null,null,null,null,null,null,null,null,null,null,null,null,null,null,null,null,null,null,null,null,null,null,null,null,null,null,null,null,null,{"$error":"#NUM!"},0,600,0]
[null,null,null,null,null,null,null,null,null,"",0.5,7.5,7.5,-7.5,-7.5,null,null,null,null,null,null,null,null,null,null,null,null,null,null,null,null,null,null,null,null,null,null,null,null,null,null,null,null,null,null,null,null,null,null,null,null,null,{"$error":"#NUM!"},0,600,0]
[null,null,null,null,null,null,null,null,null,"",0.5,7.5,7.5,-7.5,-7.5,null,null,null,null,null,null,null,null,null,null,null,null,null,null,null,null,null,null,null,null,null,null,null,null,null,null,null,null,null,null,null,null,null,null,null,null,null,{"$error":"#NUM!"},0,600,0]
[null,null,null,null,null,null,null,null,null,"",0.5,7.5,7.5,-7.5,-7.5,null,null,null,null,null,null,null,null,null,null,null,null,null,null,null,null,null,null,null,null,null,null,null,null,null,null,null,null,null,null,null,null,null,null,null,null,null,{"$error":"#NUM!"},0,600,0]
[null,null,null,null,null,null,null,null,null,"",0.5,7.5,7.5,-7.5,-7.5,null,null,null,null,null,null,null,null,null,null,null,null,null,null,null,null,null,null,null,null,null,null,null,null,null,null,null,null,null,null,null,null,null,null,null,null,null,{"$error":"#NUM!"},0,600,0]
[null,null,null,null,null,null,null,null,null,"",0.5,7.5,7.5,-7.5,-7.5,null,null,null,null,null,null,null,null,null,null,null,null,null,null,null,null,null,null,null,null,null,null,null,null,null,null,null,null,null,null,null,null,null,null,null,null,null,{"$error":"#NUM!"},0,600,0]
[null,null,null,null,null,null,null,null,null,"",0.5,7.5,7.5,-7.5,-7.5,null,null,null,null,null,null,null,null,null,null,null,null,null,null,null,null,null,null,null,null,null,null,null,null,null,null,null,null,null,null,null,null,null,null,null,null,null,{"$error":"#NUM!"},0,600,0]
[null,null,null,null,null,null,null,null,null,"",0.5,7.5,7.5,-7.5,-7.5,null,null,null,null,null,null,null,null,null,null,null,null,null,null,null,null,null,null,null,null,null,null,null,null,null,null,null,null,null,null,null,null,null,null,null,null,null,{"$error":"#NUM!"},0,600,0]
[null,null,null,null,null,null,null,null,null,"",0.5,7.5,7.5,-7.5,-7.5,null,null,null,null,null,null,null,null,null,null,null,null,null,null,null,null,null,null,null,null,null,null,null,null,null,null,null,null,null,null,null,null,null,null,null,null,null,{"$error":"#NUM!"},0,600,0]
[null,null,null,null,null,null,null,null,null,"",0.5,7.5,7.5,-7.5,-7.5,null,null,null,null,null,null,null,null,null,null,null,null,null,null,null,null,null,null,null,null,null,null,null,null,null,null,null,null,null,null,null,null,null,null,null,null,null,{"$error":"#NUM!"},0,600,0]
[null,null,null,null,null,null,null,null,null,"",0.5,7.5,7.5,-7.5,-7.5,null,null,null,null,null,null,null,null,null,null,null,null,null,null,null,null,null,null,null,null,null,null,null,null,null,null,null,null,null,null,null,null,null,null,null,null,null,{"$error":"#NUM!"},0,600,0]
[null,null,null,null,null,null,null,null,null,"",0.5,7.5,7.5,-7.5,-7.5,null,null,null,null,null,null,null,null,null,null,null,null,null,null,null,null,null,null,null,null,null,null,null,null,null,null,null,null,null,null,null,null,null,null,null,null,null,{"$error":"#NUM!"},0,600,0]
[null,null,null,null,null,null,null,null,null,"",0.5,7.5,7.5,-7.5,-7.5,null,null,null,null,null,null,null,null,null,null,null,null,null,null,null,null,null,null,null,null,null,null,null,null,null,null,null,null,null,null,null,null,null,null,null,null,null,{"$error":"#NUM!"},0,600,0]
[null,null,null,null,null,null,null,null,null,"",0.5,7.5,7.5,-7.5,-7.5,null,null,null,null,null,null,null,null,null,null,null,null,null,null,null,null,null,null,null,null,null,null,null,null,null,null,null,null,null,null,null,null,null,null,null,null,null,{"$error":"#NUM!"},0,600,0]
[null,null,null,null,null,null,null,null,null,"",0.5,7.5,7.5,-7.5,-7.5,null,null,null,null,null,null,null,null,null,null,null,null,null,null,null,null,null,null,null,null,null,null,null,null,null,null,null,null,null,null,null,null,null,null,null,null,null,{"$error":"#NUM!"},0,600,0]
[null,null,null,null,null,null,null,null,null,"",0.5,7.5,7.5,-7.5,-7.5,null,null,null,null,null,null,null,null,null,null,null,null,null,null,null,null,null,null,null,null,null,null,null,null,null,null,null,null,null,null,null,null,null,null,null,null,null,{"$error":"#NUM!"},0,600,0]
[null,null,null,null,null,null,null,null,null,"",0.5,7.5,7.5,-7.5,-7.5,null,null,null,null,null,null,null,null,null,null,null,null,null,null,null,null,null,null,null,null,null,null,null,null,null,null,null,null,null,null,null,null,null,null,null,null,null,{"$error":"#NUM!"},0,600,0]
[null,null,null,null,null,null,null,null,null,"",0.5,7.5,7.5,-7.5,-7.5,null,null,null,null,null,null,null,null,null,null,null,null,null,null,null,null,null,null,null,null,null,null,null,null,null,null,null,null,null,null,null,null,null,null,null,null,null,{"$error":"#NUM!"},0,600,0]
[null,null,null,null,null,null,null,null,null,"",0.5,7.5,7.5,-7.5,-7.5,null,null,null,null,null,null,null,null,null,null,null,null,null,null,null,null,null,null,null,null,null,null,null,null,null,null,null,null,null,null,null,null,null,null,null,null,null,{"$error":"#NUM!"},0,600,0]
[null,null,null,null,null,null,null,null,null,"",0.5,7.5,7.5,-7.5,-7.5,null,null,null,null,null,null,null,null,null,null,null,null,null,null,null,null,null,null,null,null,null,null,null,null,null,null,null,null,null,null,null,null,null,null,null,null,null,{"$error":"#NUM!"},0,600,0]
[null,null,null,null,null,null,null,null,null,"",0.5,7.5,7.5,-7.5,-7.5,null,null,null,null,null,null,null,null,null,null,null,null,null,null,null,null,null,null,null,null,null,null,null,null,null,null,null,null,null,null,null,null,null,null,null,null,null,{"$error":"#NUM!"},0,600,0]
[null,null,null,null,null,null,null,null,null,"",0.5,7.5,7.5,-7.5,-7.5,null,null,null,null,null,null,null,null,null,null,null,null,null,null,null,null,null,null,null,null,null,null,null,null,null,null,null,null,null,null,null,null,null,null,null,null,null,{"$error":"#NUM!"},0,600,0]
[null,null,null,null,null,null,null,null,null,"",0.5,7.5,7.5,-7.5,-7.5,null,null,null,null,null,null,null,null,null,null,null,null,null,null,null,null,null,null,null,null,null,null,null,null,null,null,null,null,null,null,null,null,null,null,null,null,null,{"$error":"#NUM!"},0,600,0]
[null,null,null,null,null,null,null,null,null,"",0.5,7.5,7.5,-7.5,-7.5,null,null,null,null,null,null,null,null,null,null,null,null,null,null,null,null,null,null,null,null,null,null,null,null,null,null,null,null,null,null,null,null,null,null,null,null,null,{"$error":"#NUM!"},0,600,0]
[null,null,null,null,null,null,null,null,null,"",0.5,7.5,7.5,-7.5,-7.5,null,null,null,null,null,null,null,null,null,null,null,null,null,null,null,null,null,null,null,null,null,null,null,null,null,null,null,null,null,null,null,null,null,null,null,null,null,{"$error":"#NUM!"},0,600,0]
[null,null,null,null,null,null,null,null,null,"",0.5,7.5,7.5,-7.5,-7.5,null,null,null,null,null,null,null,null,null,null,null,null,null,null,null,null,null,null,null,null,null,null,null,null,null,null,null,null,null,null,null,null,null,null,null,null,null,{"$error":"#NUM!"},0,600,0]
[null,null,null,null,null,null,null,null,null,"",0.5,7.5,7.5,-7.5,-7.5,null,null,null,null,null,null,null,null,null,null,null,null,null,null,null,null,null,null,null,null,null,null,null,null,null,null,null,null,null,null,null,null,null,null,null,null,null,{"$error":"#NUM!"},0,600,0]
[null,null,null,null,null,null,null,null,null,"",0.5,7.5,7.5,-7.5,-7.5,null,null,null,null,null,null,null,null,null,null,null,null,null,null,null,null,null,null,null,null,null,null,null,null,null,null,null,null,null,null,null,null,null,null,null,null,null,{"$error":"#NUM!"},0,600,0]
[null,null,null,null,null,null,null,null,null,"",0.5,7.5,7.5,-7.5,-7.5,null,null,null,null,null,null,null,null,null,null,null,null,null,null,null,null,null,null,null,null,null,null,null,null,null,null,null,null,null,null,null,null,null,null,null,null,null,{"$error":"#NUM!"},0,600,0]
[null,null,null,null,null,null,null,null,null,"",0.5,7.5,7.5,-7.5,-7.5,null,null,null,null,null,null,null,null,null,null,null,null,null,null,null,null,null,null,null,null,null,null,null,null,null,null,null,null,null,null,null,null,null,null,null,null,null,{"$error":"#NUM!"},0,600,0]
[null,null,null,null,null,null,null,null,null,"",0.5,7.5,7.5,-7.5,-7.5,null,null,null,null,null,null,null,null,null,null,null,null,null,null,null,null,null,null,null,null,null,null,null,null,null,null,null,null,null,null,null,null,null,null,null,null,null,{"$error":"#NUM!"},0,600,0]
[null,null,null,null,null,null,null,null,null,"",0.5,7.5,7.5,-7.5,-7.5,null,null,null,null,null,null,null,null,null,null,null,null,null,null,null,null,null,null,null,null,null,null,null,null,null,null,null,null,null,null,null,null,null,null,null,null,null,{"$f":"IF(ISBLANK(A135),BA134,A135)","v":{"$error":"#NUM!"}},{"$f":"IF(ISBLANK(A135),BB134,BB134+M135)","v":0},{"$f":"IF(BC134<=600,600,IF(ISBLANK(A135),BC134,BC134+O135))","v":600},{"$f":"IF(BD134>=2000,2000,IF(ISBLANK(A135),BD134,BD134+J135))","v":0}]
[null,null,null,null,null,null,null,null,null,"",0.5,7.5,7.5,-7.5,-7.5,null,null,null,null,null,null,null,null,null,null,null,null,null,null,null,null,null,null,null,null,null,null,null,null,null,null,null,null,null,null,null,null,null,null,null,null,null,{"$error":"#NUM!"},0,600,0]
[null,null,null,null,null,null,null,null,null,"",0.5,7.5,7.5,-7.5,-7.5,null,null,null,null,null,null,null,null,null,null,null,null,null,null,null,null,null,null,null,null,null,null,null,null,null,null,null,null,null,null,null,null,null,null,null,null,null,{"$error":"#NUM!"},0,600,0]
[null,null,null,null,null,null,null,null,null,"",0.5,7.5,7.5,-7.5,-7.5,null,null,null,null,null,null,null,null,null,null,null,null,null,null,null,null,null,null,null,null,null,null,null,null,null,null,null,null,null,null,null,null,null,null,null,null,null,{"$error":"#NUM!"},0,600,0]
[null,null,null,null,null,null,null,null,null,"",0.5,7.5,7.5,-7.5,-7.5,null,null,null,null,null,null,null,null,null,null,null,null,null,null,null,null,null,null,null,null,null,null,null,null,null,null,null,null,null,null,null,null,null,null,null,null,null,{"$error":"#NUM!"},0,600,0]
[null,null,null,null,null,null,null,null,null,"",0.5,7.5,7.5,-7.5,-7.5,null,null,null,null,null,null,null,null,null,null,null,null,null,null,null,null,null,null,null,null,null,null,null,null,null,null,null,null,null,null,null,null,null,null,null,null,null,{"$error":"#NUM!"},0,600,0]
[null,null,null,null,null,null,null,null,null,"",0.5,7.5,7.5,-7.5,-7.5,null,null,null,null,null,null,null,null,null,null,null,null,null,null,null,null,null,null,null,null,null,null,null,null,null,null,null,null,null,null,null,null,null,null,null,null,null,{"$error":"#NUM!"},0,600,0]
[null,null,null,null,null,null,null,null,null,"",0.5,7.5,7.5,-7.5,-7.5,null,null,null,null,null,null,null,null,null,null,null,null,null,null,null,null,null,null,null,null,null,null,null,null,null,null,null,null,null,null,null,null,null,null,null,null,null,{"$error":"#NUM!"},0,600,0]
[null,null,null,null,null,null,null,null,null,"",0.5,7.5,7.5,-7.5,-7.5,null,null,null,null,null,null,null,null,null,null,null,null,null,null,null,null,null,null,null,null,null,null,null,null,null,null,null,null,null,null,null,null,null,null,null,null,null,{"$error":"#NUM!"},0,600,0]
[null,null,null,null,null,null,null,null,null,"",0.5,7.5,7.5,-7.5,-7.5,null,null,null,null,null,null,null,null,null,null,null,null,null,null,null,null,null,null,null,null,null,null,null,null,null,null,null,null,null,null,null,null,null,null,null,null,null,{"$error":"#NUM!"},0,600,0]
[null,null,null,null,null,null,null,null,null,"",0.5,7.5,7.5,-7.5,-7.5,null,null,null,null,null,null,null,null,null,null,null,null,null,null,null,null,null,null,null,null,null,null,null,null,null,null,null,null,null,null,null,null,null,null,null,null,null,{"$error":"#NUM!"},0,600,0]
[null,null,null,null,null,null,null,null,null,{"$f":"IF(ISBLANK(A146),\"\",IF(H146=\"v\",M146,O146))","v":""},{"$f":"(1/(1+10^((E146-C146)/200)))","v":0.5},{"$f":"C146+15*(1-K146)","v":7.5},{"$f":"L146-C146","v":7.5},{"$f":"C146+(15*(0-K146))","v":-7.5},{"$f":"-(C146-N146)","v":-7.5},null,null,null,null,null,null,null,null,null,null,null,null,null,null,null,null,null,null,null,null,null,null,null,null,null,null,null,null,null,null,null,null,null,null,null,null,null,{"$error":"#NUM!"},0,600,0]
[null,null,null,null,null,null,null,null,null,"",0.5,7.5,7.5,-7.5,-7.5,null,null,null,null,null,null,null,null,null,null,null,null,null,null,null,null,null,null,null,null,null,null,null,null,null,null,null,null,null,null,null,null,null,null,null,null,null,{"$error":"#NUM!"},0,600,0]
[null,null,null,null,null,null,null,null,null,"",0.5,7.5,7.5,-7.5,-7.5,null,null,null,null,null,null,null,null,null,null,null,null,null,null,null,null,null,null,null,null,null,null,null,null,null,null,null,null,null,null,null,null,null,null,null,null,null,{"$error":"#NUM!"},0,600,0]
[null,null,null,null,null,null,null,null,null,"",0.5,7.5,7.5,-7.5,-7.5,null,null,null,null,null,null,null,null,null,null,null,null,null,null,null,null,null,null,null,null,null,null,null,null,null,null,null,null,null,null,null,null,null,null,null,null,null,{"$error":"#NUM!"},0,600,0]
[null,null,null,null,null,null,null,null,null,"",0.5,7.5,7.5,-7.5,-7.5,null,null,null,null,null,null,null,null,null,null,null,null,null,null,null,null,null,null,null,null,null,null,null,null,null,null,null,null,null,null,null,null,null,null,null,null,null,{"$error":"#NUM!"},0,600,0]
[null,null,null,null,null,null,null,null,null,"",0.5,7.5,7.5,-7.5,-7.5,null,null,null,null,null,null,null,null,null,null,null,null,null,null,null,null,null,null,null,null,null,null,null,null,null,null,null,null,null,null,null,null,null,null,null,null,null,{"$error":"#NUM!"},0,600,0]
[null,null,null,null,null,null,null,null,null,"",0.5,7.5,7.5,-7.5,-7.5,null,null,null,null,null,null,null,null,null,null,null,null,null,null,null,null,null,null,null,null,null,null,null,null,null,null,null,null,null,null,null,null,null,null,null,null,null,{"$error":"#NUM!"},0,600,0]
[null,null,null,null,null,null,null,null,null,"",0.5,7.5,7.5,-7.5,-7.5,null,null,null,null,null,null,null,null,null,null,null,null,null,null,null,null,null,null,null,null,null,null,null,null,null,null,null,null,null,null,null,null,null,null,null,null,null,{"$error":"#NUM!"},0,600,0]
[null,null,null,null,null,null,null,null,null,"",0.5,7.5,7.5,-7.5,-7.5,null,null,null,null,null,null,null,null,null,null,null,null,null,null,null,null,null,null,null,null,null,null,null,null,null,null,null,null,null,null,null,null,null,null,null,null,null,{"$error":"#NUM!"},0,600,0]
[null,null,null,null,null,null,null,null,null,"",0.5,7.5,7.5,-7.5,-7.5,null,null,null,null,null,null,null,null,null,null,null,null,null,null,null,null,null,null,null,null,null,null,null,null,null,null,null,null,null,null,null,null,null,null,null,null,null,{"$error":"#NUM!"},0,600,0]
[null,null,null,null,null,null,null,null,null,"",0.5,7.5,7.5,-7.5,-7.5,null,null,null,null,null,null,null,null,null,null,null,null,null,null,null,null,null,null,null,null,null,null,null,null,null,null,null,null,null,null,null,null,null,null,null,null,null,{"$error":"#NUM!"},0,600,0]
[null,null,null,null,null,null,null,null,null,"",0.5,7.5,7.5,-7.5,-7.5,null,null,null,null,null,null,null,null,null,null,null,null,null,null,null,null,null,null,null,null,null,null,null,null,null,null,null,null,null,null,null,null,null,null,null,null,null,{"$error":"#NUM!"},0,600,0]
[null,null,null,null,null,null,null,null,null,"",0.5,7.5,7.5,-7.5,-7.5,null,null,null,null,null,null,null,null,null,null,null,null,null,null,null,null,null,null,null,null,null,null,null,null,null,null,null,null,null,null,null,null,null,null,null,null,null,{"$error":"#NUM!"},0,600,0]
[null,null,null,null,null,null,null,null,null,"",0.5,7.5,7.5,-7.5,-7.5,null,null,null,null,null,null,null,null,null,null,null,null,null,null,null,null,null,null,null,null,null,null,null,null,null,null,null,null,null,null,null,null,null,null,null,null,null,{"$error":"#NUM!"},0,600,0]
[null,null,null,null,null,null,null,null,null,"",0.5,7.5,7.5,-7.5,-7.5,null,null,null,null,null,null,null,null,null,null,null,null,null,null,null,null,null,null,null,null,null,null,null,null,null,null,null,null,null,null,null,null,null,null,null,null,null,{"$error":"#NUM!"},0,600,0]
[null,null,null,null,null,null,null,null,null,"",0.5,7.5,7.5,-7.5,-7.5,null,null,null,null,null,null,null,null,null,null,null,null,null,null,null,null,null,null,null,null,null,null,null,null,null,null,null,null,null,null,null,null,null,null,null,null,null,{"$error":"#NUM!"},0,600,0]
[null,null,null,null,null,null,null,null,null,"",0.5,7.5,7.5,-7.5,-7.5,null,null,null,null,null,null,null,null,null,null,null,null,null,null,null,null,null,null,null,null,null,null,null,null,null,null,null,null,null,null,null,null,null,null,null,null,null,{"$error":"#NUM!"},0,600,0]
[null,null,null,null,null,null,null,null,null,"",0.5,7.5,7.5,-7.5,-7.5,null,null,null,null,null,null,null,null,null,null,null,null,null,null,null,null,null,null,null,null,null,null,null,null,null,null,null,null,null,null,null,null,null,null,null,null,null,{"$error":"#NUM!"},0,600,0]
[null,null,null,null,null,null,null,null,null,"",0.5,7.5,7.5,-7.5,-7.5,null,null,null,null,null,null,null,null,null,null,null,null,null,null,null,null,null,null,null,null,null,null,null,null,null,null,null,null,null,null,null,null,null,null,null,null,null,{"$error":"#NUM!"},0,600,0]
[null,null,null,null,null,null,null,null,null,"",0.5,7.5,7.5,-7.5,-7.5,null,null,null,null,null,null,null,null,null,null,null,null,null,null,null,null,null,null,null,null,null,null,null,null,null,null,null,null,null,null,null,null,null,null,null,null,null,{"$error":"#NUM!"},0,600,0]
[null,null,null,null,null,null,null,null,null,"",0.5,7.5,7.5,-7.5,-7.5,null,null,null,null,null,null,null,null,null,null,null,null,null,null,null,null,null,null,null,null,null,null,null,null,null,null,null,null,null,null,null,null,null,null,null,null,null,{"$error":"#NUM!"},0,600,0]
[null,null,null,null,null,null,null,null,null,"",0.5,7.5,7.5,-7.5,-7.5,null,null,null,null,null,null,null,null,null,null,null,null,null,null,null,null,null,null,null,null,null,null,null,null,null,null,null,null,null,null,null,null,null,null,null,null,null,{"$f":"IF(ISBLANK(A167),BA166,A167)","v":{"$error":"#NUM!"}},{"$f":"IF(ISBLANK(A167),BB166,BB166+M167)","v":0},{"$f":"IF(BC166<=600,600,IF(ISBLANK(A167),BC166,BC166+O167))","v":600},{"$f":"IF(BD166>=2000,2000,IF(ISBLANK(A167),BD166,BD166+J167))","v":0}]
[null,null,null,null,null,null,null,null,null,"",0.5,7.5,7.5,-7.5,-7.5,null,null,null,null,null,null,null,null,null,null,null,null,null,null,null,null,null,null,null,null,null,null,null,null,null,null,null,null,null,null,null,null,null,null,null,null,null,{"$error":"#NUM!"},0,600,0]
[null,null,null,null,null,null,null,null,null,"",0.5,7.5,7.5,-7.5,-7.5,null,null,null,null,null,null,null,null,null,null,null,null,null,null,null,null,null,null,null,null,null,null,null,null,null,null,null,null,null,null,null,null,null,null,null,null,null,{"$error":"#NUM!"},0,600,0]
[null,null,null,null,null,null,null,null,null,"",0.5,7.5,7.5,-7.5,-7.5,null,null,null,null,null,null,null,null,null,null,null,null,null,null,null,null,null,null,null,null,null,null,null,null,null,null,null,null,null,null,null,null,null,null,null,null,null,{"$error":"#NUM!"},0,600,0]
[null,null,null,null,null,null,null,null,null,"",0.5,7.5,7.5,-7.5,-7.5,null,null,null,null,null,null,null,null,null,null,null,null,null,null,null,null,null,null,null,null,null,null,null,null,null,null,null,null,null,null,null,null,null,null,null,null,null,{"$error":"#NUM!"},0,600,0]
[null,null,null,null,null,null,null,null,null,"",0.5,7.5,7.5,-7.5,-7.5,null,null,null,null,null,null,null,null,null,null,null,null,null,null,null,null,null,null,null,null,null,null,null,null,null,null,null,null,null,null,null,null,null,null,null,null,null,{"$error":"#NUM!"},0,600,0]
[null,null,null,null,null,null,null,null,null,"",0.5,7.5,7.5,-7.5,-7.5,null,null,null,null,null,null,null,null,null,null,null,null,null,null,null,null,null,null,null,null,null,null,null,null,null,null,null,null,null,null,null,null,null,null,null,null,null,{"$error":"#NUM!"},0,600,0]
[null,null,null,null,null,null,null,null,null,"",0.5,7.5,7.5,-7.5,-7.5,null,null,null,null,null,null,null,null,null,null,null,null,null,null,null,null,null,null,null,null,null,null,null,null,null,null,null,null,null,null,null,null,null,null,null,null,null,{"$error":"#NUM!"},0,600,0]
[null,null,null,null,null,null,null,null,null,"",0.5,7.5,7.5,-7.5,-7.5,null,null,null,null,null,null,null,null,null,null,null,null,null,null,null,null,null,null,null,null,null,null,null,null,null,null,null,null,null,null,null,null,null,null,null,null,null,{"$error":"#NUM!"},0,600,0]
[null,null,null,null,null,null,null,null,null,"",0.5,7.5,7.5,-7.5,-7.5,null,null,null,null,null,null,null,null,null,null,null,null,null,null,null,null,null,null,null,null,null,null,null,null,null,null,null,null,null,null,null,null,null,null,null,null,null,{"$error":"#NUM!"},0,600,0]
[null,null,null,null,null,null,null,null,null,"",0.5,7.5,7.5,-7.5,-7.5,null,null,null,null,null,null,null,null,null,null,null,null,null,null,null,null,null,null,null,null,null,null,null,null,null,null,null,null,null,null,null,null,null,null,null,null,null,{"$error":"#NUM!"},0,600,0]
[null,null,null,null,null,null,null,null,null,"",0.5,7.5,7.5,-7.5,-7.5,null,null,null,null,null,null,null,null,null,null,null,null,null,null,null,null,null,null,null,null,null,null,null,null,null,null,null,null,null,null,null,null,null,null,null,null,null,{"$error":"#NUM!"},0,600,0]
[null,null,null,null,null,null,null,null,null,"",0.5,7.5,7.5,-7.5,-7.5,null,null,null,null,null,null,null,null,null,null,null,null,null,null,null,null,null,null,null,null,null,null,null,null,null,null,null,null,null,null,null,null,null,null,null,null,null,{"$error":"#NUM!"},0,600,0]
[null,null,null,null,null,null,null,null,null,"",0.5,7.5,7.5,-7.5,-7.5,null,null,null,null,null,null,null,null,null,null,null,null,null,null,null,null,null,null,null,null,null,null,null,null,null,null,null,null,null,null,null,null,null,null,null,null,null,{"$error":"#NUM!"},0,600,0]
[null,null,null,null,null,null,null,null,null,"",0.5,7.5,7.5,-7.5,-7.5,null,null,null,null,null,null,null,null,null,null,null,null,null,null,null,null,null,null,null,null,null,null,null,null,null,null,null,null,null,null,null,null,null,null,null,null,null,{"$error":"#NUM!"},0,600,0]
[null,null,null,null,null,null,null,null,null,"",0.5,7.5,7.5,-7.5,-7.5,null,null,null,null,null,null,null,null,null,null,null,null,null,null,null,null,null,null,null,null,null,null,null,null,null,null,null,null,null,null,null,null,null,null,null,null,null,{"$error":"#NUM!"},0,600,0]
[null,null,null,null,null,null,null,null,null,"",0.5,7.5,7.5,-7.5,-7.5,null,null,null,null,null,null,null,null,null,null,null,null,null,null,null,null,null,null,null,null,null,null,null,null,null,null,null,null,null,null,null,null,null,null,null,null,null,{"$error":"#NUM!"},0,600,0]
[null,null,null,null,null,null,null,null,null,"",0.5,7.5,7.5,-7.5,-7.5,null,null,null,null,null,null,null,null,null,null,null,null,null,null,null,null,null,null,null,null,null,null,null,null,null,null,null,null,null,null,null,null,null,null,null,null,null,{"$error":"#NUM!"},0,600,0]
[null,null,null,null,null,null,null,null,null,"",0.5,7.5,7.5,-7.5,-7.5,null,null,null,null,null,null,null,null,null,null,null,null,null,null,null,null,null,null,null,null,null,null,null,null,null,null,null,null,null,null,null,null,null,null,null,null,null,{"$error":"#NUM!"},0,600,0]
[null,null,null,null,null,null,null,null,null,"",0.5,7.5,7.5,-7.5,-7.5,null,null,null,null,null,null,null,null,null,null,null,null,null,null,null,null,null,null,null,null,null,null,null,null,null,null,null,null,null,null,null,null,null,null,null,null,null,{"$error":"#NUM!"},0,600,0]
[null,null,null,null,null,null,null,null,null,"",0.5,7.5,7.5,-7.5,-7.5,null,null,null,null,null,null,null,null,null,null,null,null,null,null,null,null,null,null,null,null,null,null,null,null,null,null,null,null,null,null,null,null,null,null,null,null,null,{"$error":"#NUM!"},0,600,0]
[null,null,null,null,null,null,null,null,null,"",0.5,7.5,7.5,-7.5,-7.5,null,null,null,null,null,null,null,null,null,null,null,null,null,null,null,null,null,null,null,null,null,null,null,null,null,null,null,null,null,null,null,null,null,null,null,null,null,{"$error":"#NUM!"},0,600,0]
[null,null,null,null,null,null,null,null,null,"",0.5,7.5,7.5,-7.5,-7.5,null,null,null,null,null,null,null,null,null,null,null,null,null,null,null,null,null,null,null,null,null,null,null,null,null,null,null,null,null,null,null,null,null,null,null,null,null,{"$error":"#NUM!"},0,600,0]
[null,null,null,null,null,null,null,null,null,"",0.5,7.5,7.5,-7.5,-7.5,null,null,null,null,null,null,null,null,null,null,null,null,null,null,null,null,null,null,null,null,null,null,null,null,null,null,null,null,null,null,null,null,null,null,null,null,null,{"$error":"#NUM!"},0,600,0]
[null,null,null,null,null,null,null,null,null,"",0.5,7.5,7.5,-7.5,-7.5,null,null,null,null,null,null,null,null,null,null,null,null,null,null,null,null,null,null,null,null,null,null,null,null,null,null,null,null,null,null,null,null,null,null,null,null,null,{"$error":"#NUM!"},0,600,0]
[null,null,null,null,null,null,null,null,null,"",0.5,7.5,7.5,-7.5,-7.5,null,null,null,null,null,null,null,null,null,null,null,null,null,null,null,null,null,null,null,null,null,null,null,null,null,null,null,null,null,null,null,null,null,null,null,null,null,{"$error":"#NUM!"},0,600,0]
[null,null,null,null,null,null,null,null,null,"",0.5,7.5,7.5,-7.5,-7.5,null,null,null,null,null,null,null,null,null,null,null,null,null,null,null,null,null,null,null,null,null,null,null,null,null,null,null,null,null,null,null,null,null,null,null,null,null,{"$error":"#NUM!"},0,600,0]
[null,null,null,null,null,null,null,null,null,"",0.5,7.5,7.5,-7.5,-7.5,null,null,null,null,null,null,null,null,null,null,null,null,null,null,null,null,null,null,null,null,null,null,null,null,null,null,null,null,null,null,null,null,null,null,null,null,null,{"$error":"#NUM!"},0,600,0]
[null,null,null,null,null,null,null,null,null,"",0.5,7.5,7.5,-7.5,-7.5,null,null,null,null,null,null,null,null,null,null,null,null,null,null,null,null,null,null,null,null,null,null,null,null,null,null,null,null,null,null,null,null,null,null,null,null,null,{"$error":"#NUM!"},0,600,0]
[null,null,null,null,null,null,null,null,null,"",0.5,7.5,7.5,-7.5,-7.5,null,null,null,null,null,null,null,null,null,null,null,null,null,null,null,null,null,null,null,null,null,null,null,null,null,null,null,null,null,null,null,null,null,null,null,null,null,{"$error":"#NUM!"},0,600,0]
[null,null,null,null,null,null,null,null,null,"",0.5,7.5,7.5,-7.5,-7.5,null,null,null,null,null,null,null,null,null,null,null,null,null,null,null,null,null,null,null,null,null,null,null,null,null,null,null,null,null,null,null,null,null,null,null,null,null,{"$error":"#NUM!"},0,600,0]
[null,null,null,null,null,null,null,null,null,"",0.5,7.5,7.5,-7.5,-7.5,null,null,null,null,null,null,null,null,null,null,null,null,null,null,null,null,null,null,null,null,null,null,null,null,null,null,null,null,null,null,null,null,null,null,null,null,null,{"$error":"#NUM!"},0,600,0]
[null,null,null,null,null,null,null,null,null,"",0.5,7.5,7.5,-7.5,-7.5,null,null,null,null,null,null,null,null,null,null,null,null,null,null,null,null,null,null,null,null,null,null,null,null,null,null,null,null,null,null,null,null,null,null,null,null,null,{"$error":"#NUM!"},0,600,0]
[null,null,null,null,null,null,null,null,null,"",0.5,7.5,7.5,-7.5,-7.5,null,null,null,null,null,null,null,null,null,null,null,null,null,null,null,null,null,null,null,null,null,null,null,null,null,null,null,null,null,null,null,null,null,null,null,null,null,{"$error":"#NUM!"},0,600,0]
[null,null,null,null,null,null,null,null,null,"",0.5,7.5,7.5,-7.5,-7.5,null,null,null,null,null,null,null,null,null,null,null,null,null,null,null,null,null,null,null,null,null,null,null,null,null,null,null,null,null,null,null,null,null,null,null,null,null,{"$error":"#NUM!"},0,600,0]
[null,null,null,null,null,null,null,null,null,"",0.5,7.5,7.5,-7.5,-7.5,null,null,null,null,null,null,null,null,null,null,null,null,null,null,null,null,null,null,null,null,null,null,null,null,null,null,null,null,null,null,null,null,null,null,null,null,null,{"$error":"#NUM!"},0,600,0]
[null,null,null,null,null,null,null,{"$f":"IF(ISBLANK(A203),\"\",IF(F203=\"Victoire\",\"V\",\"\"))","v":""},null,"",0.5,7.5,7.5,-7.5,-7.5,null,null,null,null,null,null,null,null,null,null,null,null,null,null,null,null,null,null,null,null,null,null,null,null,null,null,null,null,null,null,null,null,null,null,null,null,null,{"$f":"BA4","v":{"$error":"#N/A"}},0,600,0]